[Event "January 2 Late 2024"]
[Site "https://www.chess.com"]
[Date "2024.01.02"]
[Round "2"]
[White "Dylag, Emilia"]
[Black "Cardoso Cardoso, Jose Gabriel"]
[Result "0-1"]
[Board "102"]
[TimeControl "180+1"]
[WhiteFideId "21805172"]
[BlackFideId "4430492"]
[WhiteElo "2282"]
[BlackElo "2705"]
[WhiteTeam "POL"]
[BlackTeam "COL"]
[WhiteClock "0:00:08"]
[BlackClock "0:00:57"]

1. d4 {[%clk 0:03:00]}  d5 {[%clk 0:02:57]} 2. c4 {[%clk 0:02:59]}  e6 {[%clk 0:02:55]} 3. Nf3 {[%clk 0:03:00]}  a6 {[%clk 0:02:55]} 4. cxd5 {[%clk 0:02:58]}  exd5 {[%clk 0:02:55]} 5. Nc3 {[%clk 0:02:58]}  Nf6 {[%clk 0:02:54]} 6. Bg5 {[%clk 0:02:57]}  Be6 {[%clk 0:02:54]} 7. e3 {[%clk 0:02:58]}  Nbd7 {[%clk 0:02:52]} 8. Bd3 {[%clk 0:02:58]}  Bd6 {[%clk 0:02:52]} 9. Qc2 {[%clk 0:02:56]}  c6 {[%clk 0:02:52]} 10. h3 {[%clk 0:02:56]}  h6 {[%clk 0:02:53]} 11. Bxf6 {[%clk 0:02:54]}  Nxf6 {[%clk 0:02:52]} 12. Ne5 {[%clk 0:02:54]}  Rc8 {[%clk 0:02:32]} 13. O-O {[%clk 0:02:52]}  O-O {[%clk 0:02:26]} 14. e4 {[%clk 0:02:47]}  dxe4 {[%clk 0:02:21]} 15. Nxe4 {[%clk 0:02:45]}  Nxe4 {[%clk 0:02:18]} 16. Bxe4 {[%clk 0:02:44]}  Qh4 {[%clk 0:02:17]} 17. Rae1 {[%clk 0:02:29]}  Rfe8 {[%clk 0:02:12]} 18. Nf3 {[%clk 0:02:09]}  Qf4 {[%clk 0:02:07]} 19. b3 {[%clk 0:01:49]}  Kh8 {[%clk 0:01:53]} 20. Qc1 {[%clk 0:01:47]}  Qf6 {[%clk 0:01:25]} 21. Qd2 {[%clk 0:01:11]}  Rcd8 {[%clk 0:01:19]} 22. Bb1 {[%clk 0:01:08]}  Bd5 {[%clk 0:01:11]} 23. Qd3 {[%clk 0:01:04]}  g6 {[%clk 0:01:10]} 24. Rxe8+ {[%clk 0:00:30]}  Rxe8 {[%clk 0:01:10]} 25. Re1 {[%clk 0:00:30]}  Rxe1+ {[%clk 0:01:08]} 26. Nxe1 {[%clk 0:00:31]}  Qf4 {[%clk 0:01:05]} 27. g3 {[%clk 0:00:28]}  Qc1 {[%clk 0:01:02]} 28. Kf1 {[%clk 0:00:22]}  Bb4 {[%clk 0:00:59]} 29. Qe3 {[%clk 0:00:08]}  Qxb1 {[%clk 0:00:57]} 0-1

[Event "January 2 Late 2024"]
[Site "https://www.chess.com"]
[Date "2024.01.02"]
[Round "2"]
[White "Martinez Ramirez, Lennis"]
[Black "Bryant, Todd"]
[Result "1-0"]
[Board "103"]
[TimeControl "180+1"]
[WhiteFideId "3509079"]
[BlackFideId "2031299"]
[WhiteElo "2702"]
[BlackElo "2275"]
[WhiteTeam "CUB"]
[BlackTeam "USA"]
[WhiteClock "0:01:21"]
[BlackClock "0:00:18"]

1. d4 {[%clk 0:03:00]}  Nf6 {[%clk 0:00:52]} 2. Nf3 {[%clk 0:02:59]}  g6 {[%clk 0:00:53]} 3. Nc3 {[%clk 0:02:59]}  d5 {[%clk 0:00:52]} 4. Bf4 {[%clk 0:02:59]}  Bg7 {[%clk 0:00:52]} 5. Nb5 {[%clk 0:02:58]}  Na6 {[%clk 0:00:52]} 6. e3 {[%clk 0:02:59]}  O-O {[%clk 0:00:51]} 7. c3 {[%clk 0:02:59]}  c6 {[%clk 0:00:50]} 8. Na3 {[%clk 0:02:58]}  Ne4 {[%clk 0:00:49]} 9. h3 {[%clk 0:02:51]}  f6 {[%clk 0:00:47]} 10. Bh2 {[%clk 0:02:45]}  e5 {[%clk 0:00:45]} 11. Be2 {[%clk 0:02:44]}  Re8 {[%clk 0:00:40]} 12. O-O {[%clk 0:02:44]}  f5 {[%clk 0:00:40]} 13. Bxe5 {[%clk 0:02:31]}  Bxe5 {[%clk 0:00:38]} 14. Nxe5 {[%clk 0:02:32]}  Nc7 {[%clk 0:00:38]} 15. f4 {[%clk 0:02:30]}  Ne6 {[%clk 0:00:31]} 16. Bf3 {[%clk 0:02:30]}  Nf8 {[%clk 0:00:27]} 17. Nc2 {[%clk 0:02:26]}  Nd7 {[%clk 0:00:27]} 18. Bxe4 {[%clk 0:02:25]}  fxe4 {[%clk 0:00:25]} 19. b4 {[%clk 0:02:03]}  Nxe5 {[%clk 0:00:25]} 20. dxe5 {[%clk 0:01:54]}  h5 {[%clk 0:00:24]} 21. Nd4 {[%clk 0:01:51]}  Qh4 {[%clk 0:00:24]} 22. Qe1 {[%clk 0:01:45]}  Qe7 {[%clk 0:00:21]} 23. Qg3 {[%clk 0:01:44]}  Kh7 {[%clk 0:00:21]} 24. f5 {[%clk 0:01:36]}  Qg7 {[%clk 0:00:21]} 25. f6 {[%clk 0:01:28]}  Qh6 {[%clk 0:00:21]} 26. f7 {[%clk 0:01:27]}  Rf8 {[%clk 0:00:22]} 27. e6 {[%clk 0:01:27]}  Qg7 {[%clk 0:00:20]} 28. e7 {[%clk 0:01:21]}  Bd7 {[%clk 0:00:18]} 1-0

[Event "January 2 Late 2024"]
[Site "https://www.chess.com"]
[Date "2024.01.02"]
[Round "2"]
[White "Vifleemskaia, Svetlana"]
[Black "Khatoev, Eduard"]
[Result "0-1"]
[Board "105"]
[TimeControl "180+1"]
[WhiteFideId "4129490"]
[BlackFideId "24145076"]
[WhiteElo "2234"]
[BlackElo "2693"]
[WhiteTeam "RUS"]
[BlackTeam "RUS"]
[WhiteClock "0:00:00"]
[BlackClock "0:01:45"]

1. d4 {[%clk 0:03:00]}  c5 {[%clk 0:02:59]} 2. d5 {[%clk 0:02:58]}  Nf6 {[%clk 0:02:57]} 3. Nc3 {[%clk 0:02:57]}  d6 {[%clk 0:02:58]} 4. e4 {[%clk 0:02:57]}  Qa5 {[%clk 0:02:57]} 5. Bb5+ {[%clk 0:02:48]}  Nbd7 {[%clk 0:02:54]} 6. Bd2 {[%clk 0:02:05]}  a6 {[%clk 0:02:49]} 7. Bxd7+ {[%clk 0:02:01]}  Bxd7 {[%clk 0:02:48]} 8. a4 {[%clk 0:02:01]}  Qb6 {[%clk 0:02:31]} 9. a5 {[%clk 0:01:39]}  Qb4 {[%clk 0:02:30]} 10. f3 {[%clk 0:01:22]}  Qxb2 {[%clk 0:02:29]} 11. Rb1 {[%clk 0:01:20]}  Qa3 {[%clk 0:02:28]} 12. Rxb7 {[%clk 0:01:17]}  Bc8 {[%clk 0:02:28]} 13. Rb3 {[%clk 0:00:47]}  Qxa5 {[%clk 0:02:27]} 14. Nge2 {[%clk 0:00:16]}  Qc7 {[%clk 0:02:27]} 15. O-O {[%clk 0:00:16]}  Rb8 {[%clk 0:02:26]} 16. Qb1 {[%clk 0:00:15]}  Rxb3 {[%clk 0:01:58]} 17. Qxb3 {[%clk 0:00:16]}  g6 {[%clk 0:01:57]} 18. Rb1 {[%clk 0:00:11]}  Bg7 {[%clk 0:01:56]} 19. Qb8 {[%clk 0:00:09]}  Qxb8 {[%clk 0:01:54]} 20. Rxb8 {[%clk 0:00:10]}  Kd7 {[%clk 0:01:54]} 21. Na4 {[%clk 0:00:06]}  Ne8 {[%clk 0:01:52]} 22. Nb6+ {[%clk 0:00:04]}  Kc7 {[%clk 0:01:51]} 23. Rxc8+ {[%clk 0:00:04]}  Kxb6 {[%clk 0:01:50]} 24. Bc3 {[%clk 0:00:03]}  Bxc3 {[%clk 0:01:49]} 25. Nxc3 {[%clk 0:00:03]}  Rg8 {[%clk 0:01:48]} 26. Kf1 {[%clk 0:00:02]}  Nf6 {[%clk 0:01:47]} 27. Rc6+ {[%clk 0:00:02]}  Kb7 {[%clk 0:01:47]} 28. Ke2 {[%clk 0:00:02]}  Nd7 {[%clk 0:01:46]} 29. Na4 {[%clk 0:00:00]}  Rc8 {[%clk 0:01:45]} 0-1

[Event "January 2 Late 2024"]
[Site "https://www.chess.com"]
[Date "2024.01.02"]
[Round "2"]
[White "Jose Iraeta, Alejandro"]
[Black "Aarav Dengla"]
[Result "0-1"]
[Board "106"]
[TimeControl "180+1"]
[WhiteFideId "2226537"]
[BlackFideId "45059756"]
[WhiteElo "2224"]
[BlackElo "2690"]
[WhiteTeam "ESP"]
[BlackTeam "IND"]
[WhiteClock "0:00:55"]
[BlackClock "0:01:38"]

1. e4 {[%clk 0:03:00]}  c5 {[%clk 0:02:59]} 2. Nf3 {[%clk 0:03:00]}  d6 {[%clk 0:02:59]} 3. d4 {[%clk 0:03:00]}  cxd4 {[%clk 0:02:59]} 4. Nxd4 {[%clk 0:03:01]}  Nf6 {[%clk 0:02:59]} 5. Nc3 {[%clk 0:03:00]}  a6 {[%clk 0:03:00]} 6. Bc4 {[%clk 0:03:00]}  e6 {[%clk 0:02:59]} 7. O-O {[%clk 0:03:00]}  Be7 {[%clk 0:02:59]} 8. Re1 {[%clk 0:02:59]}  O-O {[%clk 0:02:57]} 9. f3 {[%clk 0:03:00]}  Qc7 {[%clk 0:02:55]} 10. Bb3 {[%clk 0:02:59]}  Nc6 {[%clk 0:02:53]} 11. Be3 {[%clk 0:03:00]}  e5 {[%clk 0:02:52]} 12. Nde2 {[%clk 0:02:35]}  Be6 {[%clk 0:02:51]} 13. Bg5 {[%clk 0:02:32]}  Rac8 {[%clk 0:02:29]} 14. Qd2 {[%clk 0:02:17]}  b5 {[%clk 0:02:20]} 15. Rad1 {[%clk 0:02:13]}  Ne8 {[%clk 0:02:12]} 16. Bxe7 {[%clk 0:02:02]}  Qxe7 {[%clk 0:02:13]} 17. Bd5 {[%clk 0:01:59]}  Nb4 {[%clk 0:02:06]} 18. Bxe6 {[%clk 0:01:53]}  fxe6 {[%clk 0:02:07]} 19. a3 {[%clk 0:01:52]}  Nc6 {[%clk 0:02:00]} 20. Nc1 {[%clk 0:01:33]}  Nd4 {[%clk 0:01:54]} 21. Nb3 {[%clk 0:01:24]}  Nc6 {[%clk 0:01:41]} 22. Qe3 {[%clk 0:01:16]}  Qb7 {[%clk 0:01:38]} 23. Na2 {[%clk 0:01:07]}  a5 {[%clk 0:01:38]} 24. Nbc1 {[%clk 0:01:02]}  Nd4 {[%clk 0:01:37]} 25. Nc3 {[%clk 0:01:00]}  Nxc2 {[%clk 0:01:37]} 26. Qd2 {[%clk 0:01:00]}  Nxe1 {[%clk 0:01:37]} 27. Rxe1 {[%clk 0:01:01]}  b4 {[%clk 0:01:38]} 28. axb4 {[%clk 0:00:58]}  axb4 {[%clk 0:01:39]} 29. Na4 {[%clk 0:00:55]}  Qa7+ {[%clk 0:01:38]} 0-1

[Event "January 2 Late 2024"]
[Site "https://www.chess.com"]
[Date "2024.01.02"]
[Round "2"]
[White "Riff, Vincent"]
[Black "Clarke, Matthew"]
[Result "1-0"]
[Board "110"]
[TimeControl "180+1"]
[WhiteFideId "617776"]
[BlackFideId "3227804"]
[WhiteElo "2679"]
[BlackElo "2142"]
[WhiteTeam "FRA"]
[BlackTeam "AUS"]
[WhiteClock "0:00:47"]
[BlackClock "0:00:00"]

1. e4 {[%clk 0:03:00]}  e5 {[%clk 0:03:00]} 2. Nf3 {[%clk 0:03:00]}  Nc6 {[%clk 0:03:00]} 3. Bb5 {[%clk 0:03:01]}  Nf6 {[%clk 0:03:01]} 4. O-O {[%clk 0:03:00]}  Nxe4 {[%clk 0:03:01]} 5. d4 {[%clk 0:03:01]}  Nd6 {[%clk 0:03:01]} 6. dxe5 {[%clk 0:03:01]}  Nxb5 {[%clk 0:03:00]} 7. a4 {[%clk 0:03:02]}  Nbd4 {[%clk 0:03:01]} 8. Nxd4 {[%clk 0:03:02]}  Nxd4 {[%clk 0:03:02]} 9. Qxd4 {[%clk 0:03:02]}  d5 {[%clk 0:03:02]} 10. exd6 {[%clk 0:03:02]}  Qxd6 {[%clk 0:03:02]} 11. Qe4+ {[%clk 0:03:02]}  Qe6 {[%clk 0:03:03]} 12. Qd4 {[%clk 0:03:01]}  Qd6 {[%clk 0:03:03]} 13. Qc3 {[%clk 0:03:02]}  Be6 {[%clk 0:02:51]} 14. Na3 {[%clk 0:03:00]}  c6 {[%clk 0:02:43]} 15. Bg5 {[%clk 0:02:54]}  Qc5 {[%clk 0:02:25]} 16. Qg3 {[%clk 0:02:51]}  Bd6 {[%clk 0:02:23]} 17. Bf4 {[%clk 0:02:46]}  Bxf4 {[%clk 0:02:18]} 18. Qxf4 {[%clk 0:02:47]}  O-O-O {[%clk 0:02:16]} 19. Rad1 {[%clk 0:02:32]}  Qh5 {[%clk 0:01:54]} 20. Rd4 {[%clk 0:02:06]}  Rd5 {[%clk 0:01:10]} 21. Rxd5 {[%clk 0:02:04]}  Bxd5 {[%clk 0:01:06]} 22. Qd4 {[%clk 0:02:00]}  Qg6 {[%clk 0:00:56]} 23. f3 {[%clk 0:01:55]}  Rd8 {[%clk 0:00:48]} 24. Qxa7 {[%clk 0:01:54]}  Be6 {[%clk 0:00:24]} 25. Qa8+ {[%clk 0:01:41]}  Kc7 {[%clk 0:00:24]} 26. Qa5+ {[%clk 0:01:41]}  Kc8 {[%clk 0:00:24]} 27. Qe1 {[%clk 0:01:26]}  Qg5 {[%clk 0:00:18]} 28. Nb1 {[%clk 0:01:22]}  Qc5+ {[%clk 0:00:06]} 29. Qf2 {[%clk 0:01:22]}  Qb4 {[%clk 0:00:06]} 30. b3 {[%clk 0:01:21]}  Bf5 {[%clk 0:00:01]} 31. h4 {[%clk 0:00:59]}  Qf4 {[%clk 0:00:01]} 32. Re1 {[%clk 0:00:49]}  Qd6 {[%clk 0:00:01]} 33. Nc3 {[%clk 0:00:48]}  g6 {[%clk 0:00:00]} 34. Ne4 {[%clk 0:00:47]} 1-0

[Event "January 2 Late 2024"]
[Site "https://www.chess.com"]
[Date "2024.01.02"]
[Round "2"]
[White "Jing, Andrew"]
[Black "Palchuk, Andrii"]
[Result "1/2-1/2"]
[Board "111"]
[TimeControl "180+1"]
[WhiteFideId "30984076"]
[BlackFideId "14176688"]
[WhiteElo "2139"]
[BlackElo "2678"]
[WhiteTeam "USA"]
[BlackTeam "UKR"]
[WhiteClock "0:01:04"]
[BlackClock "0:00:22"]

1. d4 {[%clk 0:03:00]}  Nf6 {[%clk 0:02:57]} 2. c4 {[%clk 0:03:00]}  e6 {[%clk 0:02:56]} 3. g3 {[%clk 0:03:00]}  d5 {[%clk 0:02:56]} 4. Bg2 {[%clk 0:03:00]}  dxc4 {[%clk 0:02:56]} 5. Nf3 {[%clk 0:02:59]}  Bd7 {[%clk 0:02:57]} 6. Ne5 {[%clk 0:02:59]}  Bc6 {[%clk 0:02:57]} 7. Nxc6 {[%clk 0:02:59]}  Nxc6 {[%clk 0:02:57]} 8. e3 {[%clk 0:03:00]}  Qd7 {[%clk 0:02:56]} 9. Qa4 {[%clk 0:02:59]}  Nd5 {[%clk 0:02:53]} 10. Qxc4 {[%clk 0:02:59]}  h5 {[%clk 0:02:51]} 11. Nc3 {[%clk 0:02:57]}  Nb6 {[%clk 0:02:45]} 12. Qe2 {[%clk 0:02:55]}  h4 {[%clk 0:02:45]} 13. O-O {[%clk 0:02:51]}  hxg3 {[%clk 0:02:44]} 14. fxg3 {[%clk 0:02:50]}  O-O-O {[%clk 0:02:45]} 15. a4 {[%clk 0:02:50]}  a6 {[%clk 0:02:31]} 16. a5 {[%clk 0:02:45]}  Nd5 {[%clk 0:02:31]} 17. Nxd5 {[%clk 0:02:45]}  exd5 {[%clk 0:02:31]} 18. Bd2 {[%clk 0:02:46]}  Kb8 {[%clk 0:02:28]} 19. Rac1 {[%clk 0:02:45]}  f5 {[%clk 0:02:23]} 20. Qf3 {[%clk 0:02:44]}  g6 {[%clk 0:02:22]} 21. Rb1 {[%clk 0:02:43]}  Na7 {[%clk 0:02:01]} 22. b4 {[%clk 0:02:41]}  Nb5 {[%clk 0:02:01]} 23. Rbc1 {[%clk 0:02:40]}  c6 {[%clk 0:02:01]} 24. Rf2 {[%clk 0:02:35]}  Nd6 {[%clk 0:02:01]} 25. Qe2 {[%clk 0:02:33]}  Qh7 {[%clk 0:01:54]} 26. Bf3 {[%clk 0:02:32]}  Nf7 {[%clk 0:01:52]} 27. Bh1 {[%clk 0:02:30]}  Bd6 {[%clk 0:01:51]} 28. Rc2 {[%clk 0:02:20]}  Bxg3 {[%clk 0:01:51]} 29. Rg2 {[%clk 0:02:20]}  Bc7 {[%clk 0:01:45]} 30. Be1 {[%clk 0:02:17]}  Nd6 {[%clk 0:01:38]} 31. Bg3 {[%clk 0:02:16]}  Ne4 {[%clk 0:01:38]} 32. Bxc7+ {[%clk 0:02:15]}  Qxc7 {[%clk 0:01:36]} 33. Rxg6 {[%clk 0:02:14]}  Rdg8 {[%clk 0:01:35]} 34. Rxg8+ {[%clk 0:02:12]}  Rxg8+ {[%clk 0:01:35]} 35. Kf1 {[%clk 0:02:13]}  Qd6 {[%clk 0:01:32]} 36. Bxe4 {[%clk 0:02:13]}  fxe4 {[%clk 0:01:31]} 37. Rb2 {[%clk 0:02:10]}  Rf8+ {[%clk 0:01:28]} 38. Ke1 {[%clk 0:02:09]}  Rf3 {[%clk 0:01:24]} 39. Kd2 {[%clk 0:02:08]}  Qh6 {[%clk 0:01:22]} 40. Rb1 {[%clk 0:02:03]}  Qf6 {[%clk 0:01:12]} 41. Kc3 {[%clk 0:02:02]}  Rf2 {[%clk 0:01:08]} 42. Qg4 {[%clk 0:01:58]}  Ka7 {[%clk 0:01:02]} 43. Re1 {[%clk 0:01:50]}  Rxh2 {[%clk 0:00:59]} 44. Qg3 {[%clk 0:01:47]}  Rh7 {[%clk 0:00:42]} 45. Rg1 {[%clk 0:01:44]}  Qh6 {[%clk 0:00:38]} 46. Qf2 {[%clk 0:01:35]}  Rf7 {[%clk 0:00:35]} 47. Qe2 {[%clk 0:01:26]}  Rf3 {[%clk 0:00:34]} 48. Re1 {[%clk 0:01:26]}  Qf6 {[%clk 0:00:33]} 49. Qh2 {[%clk 0:01:22]}  Qg5 {[%clk 0:00:31]} 50. Qe2 {[%clk 0:01:17]}  Qg3 {[%clk 0:00:29]} 51. Qd2 {[%clk 0:01:13]}  Rf2 {[%clk 0:00:27]} 52. Re2 {[%clk 0:01:13]}  Rxe2 {[%clk 0:00:23]} 53. Qxe2 {[%clk 0:01:14]}  Qg1 {[%clk 0:00:24]} 54. Qd2 {[%clk 0:01:08]}  Qb1 {[%clk 0:00:22]} 55. Qe2 {[%clk 0:01:05]}  Qc1+ {[%clk 0:00:22]} 56. Kb3 {[%clk 0:01:04]}  Qb1+ {[%clk 0:00:23]} 57. Kc3 {[%clk 0:01:05]}  Kb8 {[%clk 0:00:23]} 58. Qh2+ {[%clk 0:01:04]}  Ka7 {[%clk 0:00:22]} 59. Qe2 {[%clk 0:01:04]} 1/2-1/2

[Event "January 2 Late 2024"]
[Site "https://www.chess.com"]
[Date "2024.01.02"]
[Round "2"]
[White "Ghosh, Chanchal Kumer"]
[Black "Popilski, Gil"]
[Result "0-1"]
[Board "112"]
[TimeControl "180+1"]
[WhiteFideId "10201858"]
[BlackFideId "2809060"]
[WhiteElo "2109"]
[BlackElo "2677"]
[WhiteTeam "BAN"]
[BlackTeam "ISR"]
[WhiteClock "0:00:00"]
[BlackClock "0:00:10"]

1. e4 {[%clk 0:02:54]}  e5 {[%clk 0:02:46]} 2. Nf3 {[%clk 0:02:54]}  Nc6 {[%clk 0:02:46]} 3. Bc4 {[%clk 0:02:53]}  Nf6 {[%clk 0:02:46]} 4. O-O {[%clk 0:02:39]}  Nxe4 {[%clk 0:02:42]} 5. Bd5 {[%clk 0:02:35]}  Nf6 {[%clk 0:02:34]} 6. Bxc6 {[%clk 0:02:30]}  dxc6 {[%clk 0:02:35]} 7. Nxe5 {[%clk 0:02:25]}  Be7 {[%clk 0:02:34]} 8. Nc3 {[%clk 0:02:20]}  c5 {[%clk 0:02:32]} 9. Qf3 {[%clk 0:02:15]}  O-O {[%clk 0:02:31]} 10. d3 {[%clk 0:02:12]}  c6 {[%clk 0:02:31]} 11. h3 {[%clk 0:02:10]}  Be6 {[%clk 0:02:29]} 12. Bg5 {[%clk 0:01:56]}  Re8 {[%clk 0:02:22]} 13. Rfe1 {[%clk 0:01:53]}  Nd5 {[%clk 0:02:12]} 14. Bxe7 {[%clk 0:01:50]}  Qxe7 {[%clk 0:02:13]} 15. Ne4 {[%clk 0:01:43]}  Nb4 {[%clk 0:01:52]} 16. Re2 {[%clk 0:01:38]}  Bd5 {[%clk 0:01:48]} 17. Ng4 {[%clk 0:01:33]}  Bxe4 {[%clk 0:01:43]} 18. dxe4 {[%clk 0:01:27]}  Rad8 {[%clk 0:01:41]} 19. Qg3 {[%clk 0:01:20]}  Kh8 {[%clk 0:01:37]} 20. e5 {[%clk 0:01:14]}  Qe6 {[%clk 0:01:27]} 21. f4 {[%clk 0:01:12]}  Qg6 {[%clk 0:01:22]} 22. Qf2 {[%clk 0:01:08]}  b6 {[%clk 0:01:18]} 23. f5 {[%clk 0:01:03]}  Qh5 {[%clk 0:01:15]} 24. f6 {[%clk 0:00:56]}  Re6 {[%clk 0:01:02]} 25. fxg7+ {[%clk 0:00:45]}  Kxg7 {[%clk 0:01:03]} 26. Rf1 {[%clk 0:00:40]}  Nd5 {[%clk 0:00:54]} 27. c4 {[%clk 0:00:37]}  Ne7 {[%clk 0:00:52]} 28. Nf6 {[%clk 0:00:35]}  Qg6 {[%clk 0:00:38]} 29. Re4 {[%clk 0:00:35]}  h5 {[%clk 0:00:29]} 30. Re3 {[%clk 0:00:31]}  Kf8 {[%clk 0:00:17]} 31. Rg3 {[%clk 0:00:27]}  Qh6 {[%clk 0:00:17]} 32. Qf3 {[%clk 0:00:17]}  h4 {[%clk 0:00:11]} 33. Nd7+ {[%clk 0:00:16]}  Ke8 {[%clk 0:00:11]} 34. Qxf7+ {[%clk 0:00:14]}  Kxd7 {[%clk 0:00:11]} 35. Rd3+ {[%clk 0:00:14]}  Kc8 {[%clk 0:00:12]} 36. Rxd8+ {[%clk 0:00:14]}  Kxd8 {[%clk 0:00:13]} 37. Rd1+ {[%clk 0:00:14]}  Kc7 {[%clk 0:00:12]} 38. Qe8 {[%clk 0:00:13]}  Kb7 {[%clk 0:00:11]} 39. Qd7+ {[%clk 0:00:12]}  Ka6 {[%clk 0:00:11]} 40. Rd3 {[%clk 0:00:09]}  Qc1+ {[%clk 0:00:11]} 41. Kh2 {[%clk 0:00:09]}  Qf4+ {[%clk 0:00:11]} 42. Kg1 {[%clk 0:00:08]}  Qxc4 {[%clk 0:00:11]} 43. Ra3+ {[%clk 0:00:08]}  Kb5 {[%clk 0:00:11]} 44. Rb3+ {[%clk 0:00:08]}  Ka6 {[%clk 0:00:10]} 45. Ra3+ {[%clk 0:00:08]}  Kb5 {[%clk 0:00:10]} 46. Qxa7 {[%clk 0:00:08]}  Qc1+ {[%clk 0:00:08]} 47. Kh2 {[%clk 0:00:08]}  Qf4+ {[%clk 0:00:08]} 48. Kg1 {[%clk 0:00:08]}  Qc1+ {[%clk 0:00:08]} 49. Kh2 {[%clk 0:00:09]}  Qf4+ {[%clk 0:00:09]} 50. Kg1 {[%clk 0:00:09]}  Qd4+ {[%clk 0:00:09]} 51. Kh1 {[%clk 0:00:07]}  Qd1+ {[%clk 0:00:10]} 52. Kh2 {[%clk 0:00:07]}  Kc4 {[%clk 0:00:10]} 53. Qa6+ {[%clk 0:00:06]}  b5 {[%clk 0:00:10]} 54. Rc3+ {[%clk 0:00:05]}  Kd5 {[%clk 0:00:09]} 55. Qb7 {[%clk 0:00:03]}  Qd4 {[%clk 0:00:09]} 56. Qd7+ {[%clk 0:00:02]}  Kxe5 {[%clk 0:00:09]} 57. Qc7+ {[%clk 0:00:02]}  Kd5 {[%clk 0:00:08]} 58. Qd7+ {[%clk 0:00:01]}  Rd6 {[%clk 0:00:09]} 59. Qxe7 {[%clk 0:00:02]}  Qe5+ {[%clk 0:00:09]} 60. Qxe5+ {[%clk 0:00:02]}  Kxe5 {[%clk 0:00:10]} 61. Re3+ {[%clk 0:00:02]}  Kd4 {[%clk 0:00:10]} 62. Rf3 {[%clk 0:00:00]}  Rh6 {[%clk 0:00:10]} 0-1

[Event "January 2 Late 2024"]
[Site "https://www.chess.com"]
[Date "2024.01.02"]
[Round "2"]
[White "Petre, Nad-Titus"]
[Black "Maksimovic, Bojan"]
[Result "1/2-1/2"]
[Board "115"]
[TimeControl "180+1"]
[WhiteFideId "1204165"]
[BlackFideId "14408120"]
[WhiteElo "2461"]
[BlackElo "2848"]
[WhiteTeam "ROU"]
[BlackTeam "BIH"]
[WhiteClock "0:00:26"]
[BlackClock "0:00:05"]

1. e4 {[%clk 0:03:00]}  c5 {[%clk 0:02:59]} 2. Be2 {[%clk 0:02:59]}  d5 {[%clk 0:02:59]} 3. exd5 {[%clk 0:02:58]}  Qxd5 {[%clk 0:03:00]} 4. Nf3 {[%clk 0:02:57]}  Nf6 {[%clk 0:03:00]} 5. O-O {[%clk 0:02:56]}  Nc6 {[%clk 0:03:00]} 6. Nc3 {[%clk 0:02:49]}  Qd7 {[%clk 0:03:00]} 7. Re1 {[%clk 0:02:47]}  e6 {[%clk 0:03:00]} 8. Bb5 {[%clk 0:02:47]}  Bd6 {[%clk 0:02:59]} 9. d4 {[%clk 0:02:46]}  cxd4 {[%clk 0:02:46]} 10. Nxd4 {[%clk 0:02:41]}  O-O {[%clk 0:02:42]} 11. Bg5 {[%clk 0:02:37]}  Be7 {[%clk 0:02:21]} 12. Nxc6 {[%clk 0:02:22]}  bxc6 {[%clk 0:02:22]} 13. Bd3 {[%clk 0:02:20]}  Rb8 {[%clk 0:02:04]} 14. Na4 {[%clk 0:02:11]}  Rd8 {[%clk 0:01:55]} 15. Qe2 {[%clk 0:02:03]}  c5 {[%clk 0:01:49]} 16. b3 {[%clk 0:01:59]}  Bb7 {[%clk 0:01:48]} 17. Rad1 {[%clk 0:01:48]}  Qc6 {[%clk 0:01:48]} 18. f3 {[%clk 0:01:45]}  h6 {[%clk 0:01:36]} 19. Bf4 {[%clk 0:01:43]}  Rbc8 {[%clk 0:01:33]} 20. Bb5 {[%clk 0:01:35]}  Nd5 {[%clk 0:00:55]} 21. Bg3 {[%clk 0:01:35]}  Ba6 {[%clk 0:00:22]} 22. Bxa6 {[%clk 0:01:30]}  c4 {[%clk 0:00:22]} 23. Bxc8 {[%clk 0:01:27]}  Rxc8 {[%clk 0:00:22]} 24. Rxd5 {[%clk 0:01:17]}  Qxd5 {[%clk 0:00:21]} 25. Bf2 {[%clk 0:01:18]}  a6 {[%clk 0:00:21]} 26. Rd1 {[%clk 0:01:18]}  Qc6 {[%clk 0:00:22]} 27. Qe4 {[%clk 0:01:13]}  Qxe4 {[%clk 0:00:16]} 28. fxe4 {[%clk 0:01:13]}  cxb3 {[%clk 0:00:16]} 29. cxb3 {[%clk 0:01:14]}  Rc2 {[%clk 0:00:17]} 30. h4 {[%clk 0:01:05]}  Rxa2 {[%clk 0:00:17]} 31. Bc5 {[%clk 0:00:59]}  Bxh4 {[%clk 0:00:17]} 32. Rd3 {[%clk 0:00:53]}  Bf6 {[%clk 0:00:15]} 33. Kh2 {[%clk 0:00:51]}  Be5+ {[%clk 0:00:15]} 34. Kh3 {[%clk 0:00:51]}  g5 {[%clk 0:00:16]} 35. Rd8+ {[%clk 0:00:47]}  Kh7 {[%clk 0:00:15]} 36. Bd4 {[%clk 0:00:45]}  Rd2 {[%clk 0:00:15]} 37. Bb6 {[%clk 0:00:45]}  Re2 {[%clk 0:00:16]} 38. Nc5 {[%clk 0:00:41]}  h5 {[%clk 0:00:12]} 39. Nd3 {[%clk 0:00:39]}  Bc3 {[%clk 0:00:05]} 40. g4 {[%clk 0:00:37]}  h4 {[%clk 0:00:05]} 41. Bd4 {[%clk 0:00:35]}  Bxd4 {[%clk 0:00:03]} 42. Rxd4 {[%clk 0:00:36]}  Re3+ {[%clk 0:00:04]} 43. Kg2 {[%clk 0:00:36]}  Kg7 {[%clk 0:00:04]} 44. Kf2 {[%clk 0:00:35]}  Rg3 {[%clk 0:00:04]} 45. Ne5 {[%clk 0:00:35]}  Kf6 {[%clk 0:00:04]} 46. Nd7+ {[%clk 0:00:35]}  Ke7 {[%clk 0:00:05]} 47. Ne5 {[%clk 0:00:36]}  f6 {[%clk 0:00:04]} 48. Nc6+ {[%clk 0:00:34]}  Ke8 {[%clk 0:00:04]} 49. Rd8+ {[%clk 0:00:34]}  Kf7 {[%clk 0:00:05]} 50. Rd7+ {[%clk 0:00:34]}  Kf8 {[%clk 0:00:06]} 51. Rd8+ {[%clk 0:00:34]}  Kf7 {[%clk 0:00:07]} 52. Rd7+ {[%clk 0:00:34]}  Kg6 {[%clk 0:00:03]} 53. Ne7+ {[%clk 0:00:33]}  Kh6 {[%clk 0:00:04]} 54. Ng8+ {[%clk 0:00:33]}  Kg6 {[%clk 0:00:04]} 55. Ne7+ {[%clk 0:00:33]}  Kh6 {[%clk 0:00:05]} 56. Ng8+ {[%clk 0:00:32]}  Kg6 {[%clk 0:00:05]} 57. Ne7+ {[%clk 0:00:26]} 1/2-1/2